[Event "Chinese League Division-A 2024"]
[Site "Fuling Chongqing"]
[Date "2024.07.06"]
[Round "9.30"]
[White "Feng, Eunice"]
[Black "Zhou, Shumeng"]
[Result "1-0"]
[ECO "C42"]
[WhiteElo "1936"]
[BlackElo "2173"]
[Annotator "RC"]
[PlyCount "99"]
[EventDate "2024.06.28"]
[EventType "team-tourn"]
[EventCountry "CHN"]
[SourceTitle "playchess.com"]
[Source "ChessBase"]
[SourceQuality "1"]
[TimeControl "40/5400+30:1800+30"]

1. e4 {[%emt 0:00:04]} e5 {[%emt 0:00:25]} 2. Nf3 {[%emt 0:00:05]} Nf6 {[%emt 0:00:04]} 3. Nxe5 {[%emt 0:00:06]} d6 {[%emt 0:00:04]} 4. Nf3 {[%emt 0:00:10]} Nxe4 {[%emt 0:00:05]} 5. d4 {[%emt 0:00:07]} d5 {[%emt 0:00:05]} 6. Bd3 {[%emt 0:00:05]} Bd6 {[%emt 0:00:26]} 7. O-O {[%emt 0:00:09]} O-O {[%emt 0:00:04]} 8. c4 {[%emt 0:00:27]} c6 {[%emt 0:00:05]} 9. Qc2 {[%emt 0:00:14]} Na6 {[%emt 0:00:25]} 10. a3 {[%emt 0:00:06]} Bg4 {[%emt 0:00:06]} 11. Ne5 {[%emt 0:02:07]} Bf5 {[%emt 0:00:05]} 12. Nc3 {[%emt 0:07:30]} Bxe5 {[%emt 0:03:11]} 13. dxe5 {[%emt 0:00:08]} Nac5 {[%emt 0:00:20]} 14. cxd5 {[%emt 0:07:53]} cxd5 {[%emt 0:03:47]} 15. Nxe4 {[%emt 0:04:29]} dxe4 {[%emt 0:07:48]} 16. Qxc5 {[%emt 0:01:46]} exd3 {[%emt 0:03:12]} 17. Bd2 {[%emt 0:02:02]} b6 {[%emt 0:03:22]} 18. Qe3 {[%emt 0:04:08]} Rc8 {[%emt 0:04:05]} 19. Bc3 {[%emt 0:05:36]} Qd5 {[%emt 0:04:08]} 20. Qg5 {[%emt 0:04:55]} Qe6 {[%emt 0:03:53]} 21. f4 {[%emt 0:03:12]} h6 {[%emt 0:11:58]} 22. Qh4 {[%emt 0:01:26]} Rfd8 {[%emt 0:05:51]} 23. h3 {[%emt 0:04:55]} Be4 {[%emt 0:08:31]} 24. Rad1 {[%emt 0:07:21]} b5 {[%emt 0:08:26]} 25. Qf2 {[%emt 0:03:25]} Qd5 {[%emt 0:06:33]} 26. f5 {[%emt 0:05:49]} Qc5 {[%emt 0:05:42]} 27. g4 {[%emt 0:08:50]} g6 {[%emt 0:06:40]} 28. f6 {[%emt 0:10:10]} Qxf2+ {[%emt 0:02:42]} 29. Kxf2 {[%emt 0:00:14]} g5 {[%emt 0:02:44]} 30. e6 {[%emt 0:05:07]} fxe6 {[%emt 0:09:06]} 31. f7+ {[%emt 0:00:08]} Kf8 {[%emt 0:00:16]} 32. Bb4+ {[%emt 0:03:18]} Kg7 {[%emt 0:00:01]} 33. Ke3 {[%emt 0:01:15]} Bg6 {[%emt 0:00:08]} 34. f8=Q+ {[%emt 0:00:11]} Rxf8 {[%emt 0:00:03]} 35. Rxf8 {[%emt 0:00:12]} Rxf8 {[%emt 0:00:03]} 36. Bxf8+ {[%emt 0:00:05]} Kxf8 {[%emt 0:00:03]} 37. Rc1 {[%emt 0:00:18]} a5 {[%emt 0:01:14]} 38. Rc5 {[%emt 0:00:43]} Be8 {[%emt 0:00:06]} 39. Kxd3 {[%emt 0:00:12]} Kf7 {[%emt 0:00:30]} 40. Kd4 {[%emt 0:00:00]} Kf6 {[%emt 0:00:00]} 41. Rc1 {[%emt 0:07:06]} e5+ {[%emt 0:01:19]} 42. Kd5 {[%emt 0:00:30]} Bf7+ {[%emt 0:00:17]} 43. Kc5 {[%emt 0:00:45]} Be8 {[%emt 0:00:32]} 44. Kd6 {[%emt 0:00:52]} e4 {[%emt 0:00:22]} 45. Kd5 {[%emt 0:00:59]} Bg6 {[%emt 0:00:21]} 46. Rc6+ {[%emt 0:00:17]} Kf7 {[%emt 0:00:05]} 47. Kd4 {[%emt 0:00:13]} Kg7 {[%emt 0:01:46]} 48. Rb6 {[%emt 0:00:06]} Be8 {[%emt 0:00:05]} 49. Kxe4 {[%emt 0:00:05]} a4 {[%emt 0:00:03]} 50. Kd4 {[%emt 0:00:15]} 1-0